[Event "FIDE WCCC G12 2018"]
[Site "Santiago de Compostela"]
[Date "2018.11.15"]
[Round "11"]
[White "Savitha Shri B"]
[Black "Zavivaeva, Emilia"]
[Result "1/2-1/2"]
[ECO "D02"]
[WhiteElo "1745"]
[BlackElo "1633"]
[Annotator "NA"]
[PlyCount "75"]
[EventDate "2018.11.04"]
[EventType "swiss"]
[EventCountry "ESP"]
[SourceTitle "playchess.com"]
[Source "ChessBase"]
[SourceQuality "1"]
[TimeControl "40/5400+30:1800+30"]

1. Nf3 {[%emt 0:00:22]} d5 {[%emt 0:00:00]} 2. d4 {[%emt 0:00:01]} Nc6 {[%emt 0:01:32]} 3. c4 {[%emt 0:00:12]} e6 {[%emt 0:06:54]} 4. Nc3 {[%emt 0:00:10]} Nf6 {[%emt 0:00:40]} 5. e3 {[%emt 0:00:23]} Be7 {[%emt 0:01:24]} 6. Ne5 {[%emt 0:04:06]} O-O {[%emt 0:08:49]} 7. Nxc6 {[%emt 0:00:35]} bxc6 {[%emt 0:00:06]} 8. c5 {[%emt 0:00:05]} e5 {[%emt 0:03:30]} 9. Be2 {[%emt 0:02:49]} e4 {[%emt 0:01:53]} 10. f3 {[%emt 0:03:13]} Bf5 {[%emt 0:04:01]} 11. f4 {[%emt 0:01:11]} Qc8 {[%emt 0:02:38]} 12. h3 {[%emt 0:04:59]} Ne8 {[%emt 0:05:13]} 13. O-O {[%emt 0:10:32]} Bh4 {[%emt 0:02:04]} 14. g4 {[%emt 0:02:00]} Bd7 {[%emt 0:01:12]} 15. Bd2 {[%emt 0:01:20]} Rb8 {[%emt 0:05:40]} 16. Rb1 {[%emt 0:00:34]} h5 {[%emt 0:01:25]} 17. Be1 {[%emt 0:02:42]} Qd8 {[%emt 0:03:50]} 18. Kh2 {[%emt 0:00:51]} Kh7 {[%emt 0:02:11]} 19. g5 {[%emt 0:02:16]} Bxe1 {[%emt 0:00:23]} 20. Qxe1 {[%emt 0:00:02]} g6 {[%emt 0:01:54]} 21. Ba6 {[%emt 0:06:29]} Ng7 {[%emt 0:01:47]} 22. Ne2 {[%emt 0:01:09]} Nf5 {[%emt 0:01:09]} 23. Ng3 {[%emt 0:01:10]} Bc8 {[%emt 0:01:25]} 24. Bxc8 {[%emt 0:01:47]} Qxc8 {[%emt 0:00:10]} 25. Nxf5 {[%emt 0:00:04]} gxf5 {[%emt 0:04:03]} 26. Qa5 {[%emt 0:04:04]} a6 {[%emt 0:00:47]} 27. Qc3 {[%emt 0:15:30]} Qb7 {[%emt 0:02:00]} 28. b4 {[%emt 0:01:24]} Rfe8 {[%emt 0:03:11]} 29. a4 {[%emt 0:00:15]} Qa7 {[%emt 0:10:27]} 30. Rf2 {[%emt 0:00:49]} Rb7 {[%emt 0:01:21]} 31. Rfb2 {[%emt 0:01:03]} Reb8 {[%emt 0:01:07]} 32. g6+ {[%emt 0:05:04]} fxg6 {[%emt 0:01:22]} 33. Qe1 {[%emt 0:00:06]} Rg8 {[%emt 0:06:31]} 34. Qh4 {[%emt 0:00:05]} Qb8 {[%emt 0:00:39]} 35. Qf6 {[%emt 0:04:04]} Qe8 {[%emt 0:00:48]} 36. Rg2 {[%emt 0:01:31]} Rg7 {[%emt 0:03:23]} 37. Rg5 {[%emt 0:02:47]} Rg8 {[%emt 0:02:49]} 38. Rg2 {[%emt 0:01:31]} 1/2-1/2

[Event "FIDE WCCC G12 2018"]
[Site "Santiago de Compostela"]
[Date "2018.11.15"]
[Round "11"]
[White "Mihelic, Vesna"]
[Black "Cao, Joy"]
[Result "1-0"]
[ECO "B50"]
[WhiteElo "1741"]
[BlackElo "1411"]
[Annotator "NA"]
[PlyCount "133"]
[EventDate "2018.11.04"]
[EventType "swiss"]
[EventCountry "ESP"]
[SourceTitle "playchess.com"]
[Source "ChessBase"]
[SourceQuality "1"]
[TimeControl "40/5400+30:1800+30"]

1. e4 {[%emt 0:00:00]} c5 {[%emt 0:00:00]} 2. Nf3 {[%emt 0:00:00]} d6 {[%emt 0:00:00]} 3. Bc4 {[%emt 0:00:05]} Nf6 {[%emt 0:01:04]} 4. Qe2 {[%emt 0:00:46]} Nc6 {[%emt 0:02:33]} 5. c3 {[%emt 0:01:20]} e6 {[%emt 0:07:35]} 6. Bb3 {[%emt 0:03:28]} Be7 {[%emt 0:02:48]} 7. O-O {[%emt 0:01:12]} O-O {[%emt 0:01:39]} 8. d4 {[%emt 0:02:45]} d5 {[%emt 0:05:34]} 9. e5 {[%emt 0:05:36]} Nd7 {[%emt 0:05:03]} 10. Bc2 {[%emt 0:02:30]} cxd4 {[%emt 0:06:19]} 11. cxd4 {[%emt 0:00:20]} Qb6 {[%emt 0:03:19]} 12. Bg5 {[%emt 0:09:30]} Nxd4 {[%emt 0:05:44]} 13. Bxh7+ {[%emt 0:15:22]} Kh8 {[%emt 0:07:55]} 14. Nxd4 {[%emt 0:02:03]} Bxg5 {[%emt 0:00:30]} 15. Nf3 {[%emt 0:00:14]} Bh6 {[%emt 0:04:13]} 16. Bd3 {[%emt 0:14:17]} Nc5 {[%emt 0:03:32]} 17. Na3 {[%emt 0:01:05]} Nxd3 {[%emt 0:07:35]} 18. Qxd3 {[%emt 0:00:12]} Bd7 {[%emt 0:00:53]} 19. h4 {[%emt 0:04:07]} Qb4 {[%emt 0:05:14]} 20. Rfd1 {[%emt 0:08:38]} Rac8 {[%emt 0:04:25]} 21. Qe2 {[%emt 0:01:05]} Rc5 {[%emt 0:04:49]} 22. Rd4 {[%emt 0:02:53]} Qb6 {[%emt 0:00:35]} 23. g3 {[%emt 0:06:03]} Rc1+ {[%emt 0:03:01]} 24. Rd1 {[%emt 0:01:50]} Rfc8 {[%emt 0:03:18]} 25. Raxc1 {[%emt 0:00:46]} Bxc1 {[%emt 0:00:56]} 26. Ng5 {[%emt 0:00:51]} Kg8 {[%emt 0:01:10]} 27. b3 {[%emt 0:11:30]} Bxg5 {[%emt 0:06:24]} 28. hxg5 {[%emt 0:00:11]} Qb4 {[%emt 0:02:05]} 29. Qb2 {[%emt 0:02:38]} Qg4 {[%emt 0:03:14]} 30. Qd2 {[%emt 0:00:18]} b5 {[%emt 0:01:57]} 31. Rc1 {[%emt 0:01:36]} Rxc1+ {[%emt 0:01:05]} 32. Qxc1 {[%emt 0:00:01]} b4 {[%emt 0:00:53]} 33. Qc7 {[%emt 0:00:32]} Be8 {[%emt 0:00:29]} 34. Qd8 {[%emt 0:00:15]} Kf8 {[%emt 0:00:12]} 35. Nb5 {[%emt 0:00:57]} Qd1+ {[%emt 0:00:21]} 36. Kg2 {[%emt 0:00:08]} Qc2 {[%emt 0:00:25]} 37. Nd6 {[%emt 0:00:52]} Qc6 {[%emt 0:00:06]} 38. Nxe8 {[%emt 0:00:34]} Qxe8 {[%emt 0:00:11]} 39. Qd6+ {[%emt 0:00:09]} Qe7 {[%emt 0:00:22]} 40. Qb8+ {[%emt 0:00:00]} Qe8 {[%emt 0:00:00]} 41. Qxb4+ {[%emt 0:00:21]} Kg8 {[%emt 0:01:33]} 42. Qd4 {[%emt 0:01:36]} Qb8 {[%emt 0:03:25]} 43. b4 {[%emt 0:01:24]} Kf8 {[%emt 0:02:43]} 44. g6 {[%emt 0:02:03]} fxg6 {[%emt 0:04:55]} 45. a4 {[%emt 0:01:00]} Ke7 {[%emt 0:02:22]} 46. b5 {[%emt 0:01:48]} Kd7 {[%emt 0:02:14]} 47. Qc5 {[%emt 0:03:17]} Qc7 {[%emt 0:02:13]} 48. Qxc7+ {[%emt 0:03:44]} Kxc7 {[%emt 0:00:05]} 49. a5 {[%emt 0:00:11]} Kb7 {[%emt 0:00:05]} 50. Kf3 {[%emt 0:01:56]} Kc7 {[%emt 0:00:46]} 51. Ke3 {[%emt 0:00:12]} Kb7 {[%emt 0:00:21]} 52. Kd4 {[%emt 0:00:34]} g5 {[%emt 0:00:21]} 53. Ke3 {[%emt 0:00:22]} g6 {[%emt 0:00:39]} 54. Kf3 {[%emt 0:00:09]} Kc7 {[%emt 0:00:05]} 55. Kg4 {[%emt 0:00:08]} Kb7 {[%emt 0:00:13]} 56. Kxg5 {[%emt 0:00:15]} Kc7 {[%emt 0:00:05]} 57. Kf4 {[%emt 0:00:09]} Kb7 {[%emt 0:00:05]} 58. Ke3 {[%emt 0:00:05]} Kc7 {[%emt 0:00:03]} 59. Kd4 {[%emt 0:00:09]} Kb7 {[%emt 0:00:05]} 60. f4 {[%emt 0:00:08]} Kc7 {[%emt 0:00:23]} 61. g4 {[%emt 0:00:30]} Kd7 {[%emt 0:01:23]} 62. f5 {[%emt 0:00:37]} exf5 {[%emt 0:01:03]} 63. gxf5 {[%emt 0:00:07]} gxf5 {[%emt 0:01:16]} 64. Kxd5 {[%emt 0:00:09]} Ke7 {[%emt 0:00:33]} 65. b6 {[%emt 0:00:14]} axb6 {[%emt 0:00:21]} 66. axb6 {[%emt 0:00:13]} Kd7 {[%emt 0:00:25]} 67. e6+ {[%emt 0:00:06]} 1-0

[Event "FIDE WCCC G12 2018"]
[Site "Santiago de Compostela"]
[Date "2018.11.15"]
[Round "11"]
[White "Volovich, Julia"]
[Black "Oz, Irem Ezra"]
[Result "0-1"]
[ECO "D16"]
[WhiteElo "1735"]
[BlackElo "1564"]
[Annotator "NA"]
[PlyCount "56"]
[EventDate "2018.11.04"]
[EventType "swiss"]
[EventCountry "ESP"]
[SourceTitle "playchess.com"]
[Source "ChessBase"]
[SourceQuality "1"]
[TimeControl "40/5400+30:1800+30"]

1. d4 {[%emt 0:00:00]} d5 {[%emt 0:00:00]} 2. c4 {[%emt 0:00:00]} c6 {[%emt 0:00:05]} 3. Nf3 {[%emt 0:00:00]} Nf6 {[%emt 0:00:26]} 4. Nc3 {[%emt 0:00:00]} dxc4 {[%emt 0:00:18]} 5. a4 {[%emt 0:00:00]} e6 {[%emt 0:00:19]} 6. Bg5 {[%emt 0:02:54]} Be7 {[%emt 0:02:03]} 7. e3 {[%emt 0:01:11]} O-O {[%emt 0:02:50]} 8. Bxc4 {[%emt 0:01:40]} c5 {[%emt 0:03:05]} 9. O-O {[%emt 0:11:13]} cxd4 {[%emt 0:00:40]} 10. Nxd4 {[%emt 0:00:29]} Bd7 {[%emt 0:03:29]} 11. Qe2 {[%emt 0:10:11]} Nc6 {[%emt 0:03:05]} 12. Rfd1 {[%emt 0:02:09]} Nxd4 {[%emt 0:05:22]} 13. Rxd4 {[%emt 0:01:12]} Qc7 {[%emt 0:05:45]} 14. Nb5 {[%emt 0:23:26]} Bxb5 {[%emt 0:00:29]} 15. Bxb5 {[%emt 0:00:58]} Rfd8 {[%emt 0:01:14]} 16. Rc4 {[%emt 0:03:49]} Qa5 {[%emt 0:01:56]} 17. b4 {[%emt 0:07:20]} Qb6 {[%emt 0:01:19]} 18. Rcc1 {[%emt 0:09:54]} a6 {[%emt 0:00:39]} 19. Bd3 {[%emt 0:01:22]} Qxb4 {[%emt 0:06:52]} 20. Rab1 {[%emt 0:01:45]} Qa3 {[%emt 0:00:15]} 21. Bc2 {[%emt 0:05:11]} h6 {[%emt 0:03:47]} 22. Bh4 {[%emt 0:00:53]} Rac8 {[%emt 0:03:43]} 23. Qe1 {[%emt 0:01:32]} Nd5 {[%emt 0:07:11]} 24. Rb3 {[%emt 0:10:38]} Qa2 {[%emt 0:01:17]} 25. Bxe7 {[%emt 0:02:15]} Nxe7 {[%emt 0:00:43]} 26. Rc3 {[%emt 0:01:43]} Rxc3 {[%emt 0:05:23]} 27. Bh7+ {[%emt 0:00:04]} Kxh7 {[%emt 0:00:41]} 28. Qxc3 {[%emt 0:00:08]} Kg8 {[%emt 0:01:15]} 0-1

[Event "FIDE WCCC G12 2018"]
[Site "Santiago de Compostela"]
[Date "2018.11.15"]
[Round "11"]
[White "Wang, Ellen"]
[Black "Zvereva, Margarita"]
[Result "1-0"]
[ECO "B90"]
[WhiteElo "1711"]
[BlackElo "1787"]
[Annotator "NA"]
[PlyCount "39"]
[EventDate "2018.11.04"]
[EventType "swiss"]
[EventCountry "ESP"]
[SourceTitle "playchess.com"]
[Source "ChessBase"]
[SourceQuality "1"]
[TimeControl "40/5400+30:1800+30"]

1. e4 {[%emt 0:00:00]} c5 {[%emt 0:00:00]} 2. Nf3 {[%emt 0:00:00]} d6 {[%emt 0:00:00]} 3. d4 {[%emt 0:00:00]} cxd4 {[%emt 0:00:00]} 4. Nxd4 {[%emt 0:00:00]} Nf6 {[%emt 0:00:00]} 5. Nc3 {[%emt 0:00:00]} a6 {[%emt 0:00:00]} 6. Bc4 {[%emt 0:00:00]} e6 {[%emt 0:00:43]} 7. O-O {[%emt 0:00:00]} b5 {[%emt 0:03:28]} 8. Bb3 {[%emt 0:00:05]} b4 {[%emt 0:12:17]} 9. Na4 {[%emt 0:00:06]} Nxe4 {[%emt 0:07:02]} 10. Re1 {[%emt 0:00:14]} Nc5 {[%emt 0:13:43]} 11. Nxc5 {[%emt 0:10:49]} dxc5 {[%emt 0:00:08]} 12. Ba4+ {[%emt 0:00:20]} Bd7 {[%emt 0:07:55]} 13. Nxe6 {[%emt 0:17:09]} fxe6 {[%emt 0:00:55]} 14. Qh5+ {[%emt 0:06:16]} g6 {[%emt 0:05:00]} 15. Qe5 {[%emt 0:07:15]} Rg8 {[%emt 0:05:37]} 16. Bg5 {[%emt 0:03:42]} Qb6 {[%emt 0:02:33]} 17. Qf6 {[%emt 0:01:42]} Rg7 {[%emt 0:33:00]} 18. Rxe6+ {[%emt 0:00:12]} Qxe6 {[%emt 0:00:11]} 19. Qxe6+ {[%emt 0:00:05]} Be7 {[%emt 0:00:08]} 20. Bxe7 {[%emt 0:00:07]} 1-0

[Event "FIDE WCCC G12 2018"]
[Site "Santiago de Compostela"]
[Date "2018.11.15"]
[Round "11"]
[White "Enkhsaran, Batsaikhan"]
[Black "Butenandt, Svenja"]
[Result "0-1"]
[ECO "A46"]
[WhiteElo "1614"]
[BlackElo "1775"]
[Annotator "NA"]
[PlyCount "73"]
[EventDate "2018.11.04"]
[EventType "swiss"]
[EventCountry "ESP"]
[SourceTitle "playchess.com"]
[Source "ChessBase"]
[SourceQuality "1"]
[TimeControl "40/5400+30:1800+30"]

1. d4 {[%emt 0:00:00]} Nf6 {[%emt 0:00:00]} 2. Nf3 {[%emt 0:00:09]} e6 {[%emt 0:00:00]} 3. c4 {[%emt 0:00:29]} d5 {[%emt 0:00:05]} 4. g3 {[%emt 0:00:23]} Bb4+ {[%emt 0:00:46]} 5. Bd2 {[%emt 0:01:38]} Be7 {[%emt 0:00:43]} 6. Bg2 {[%emt 0:00:59]} c6 {[%emt 0:00:43]} 7. Nc3 {[%emt 0:03:19]} O-O {[%emt 0:00:56]} 8. Qc2 {[%emt 0:00:56]} b6 {[%emt 0:01:42]} 9. O-O {[%emt 0:00:57]} Bb7 {[%emt 0:02:18]} 10. b3 {[%emt 0:02:50]} Nbd7 {[%emt 0:01:31]} 11. e4 {[%emt 0:01:59]} dxe4 {[%emt 0:04:14]} 12. Nxe4 {[%emt 0:00:40]} c5 {[%emt 0:04:51]} 13. Nxf6+ {[%emt 0:00:49]} Bxf6 {[%emt 0:06:50]} 14. Ng5 {[%emt 0:02:55]} Bxg5 {[%emt 0:03:25]} 15. Bxb7 {[%emt 0:01:25]} Rb8 {[%emt 0:01:19]} 16. Bxg5 {[%emt 0:02:31]} Qxg5 {[%emt 0:00:39]} 17. Bc6 {[%emt 0:01:10]} Rfd8 {[%emt 0:03:05]} 18. dxc5 {[%emt 0:01:42]} Qxc5 {[%emt 0:01:39]} 19. Bg2 {[%emt 0:01:12]} Ne5 {[%emt 0:03:19]} 20. Qe2 {[%emt 0:05:47]} Rd4 {[%emt 0:07:39]} 21. Rad1 {[%emt 0:07:47]} Rbd8 {[%emt 0:03:43]} 22. Be4 {[%emt 0:03:36]} g6 {[%emt 0:09:21]} 23. Bc2 {[%emt 0:03:26]} Nc6 {[%emt 0:07:34]} 24. Be4 {[%emt 0:24:00]} Qe5 {[%emt 0:11:38]} 25. Rxd4 {[%emt 0:01:51]} Rxd4 {[%emt 0:01:39]} 26. Re1 {[%emt 0:00:50]} Nb4 {[%emt 0:02:17]} 27. a3 {[%emt 0:01:32]} Na6 {[%emt 0:00:10]} 28. b4 {[%emt 0:00:54]} Qd6 {[%emt 0:01:41]} 29. Bf3 {[%emt 0:05:50]} Rd2 {[%emt 0:02:29]} 30. Rd1 {[%emt 0:00:51]} Rxd1+ {[%emt 0:01:42]} 31. Qxd1 {[%emt 0:00:28]} Qc7 {[%emt 0:01:45]} 32. Qd4 {[%emt 0:07:18]} Qc8 {[%emt 0:06:39]} 33. Bg2 {[%emt 0:08:35]} Nc7 {[%emt 0:01:55]} 34. Qd6 {[%emt 0:02:36]} Ne8 {[%emt 0:01:59]} 35. Qe7 {[%emt 0:00:51]} Qb8 {[%emt 0:01:18]} 36. h3 {[%emt 0:03:58]} Nd6 {[%emt 0:03:06]} 37. c5 0-1

[Event "FIDE WCCC G12 2018"]
[Site "Santiago de Compostela"]
[Date "2018.11.15"]
[Round "11"]
[White "Tsirekidze, Barbare"]
[Black "Vicze, Kata"]
[Result "1/2-1/2"]
[ECO "D00"]
[WhiteElo "1611"]
[BlackElo "1828"]
[Annotator "NA"]
[PlyCount "62"]
[EventDate "2018.11.04"]
[EventType "swiss"]
[EventCountry "ESP"]
[SourceTitle "playchess.com"]
[Source "ChessBase"]
[SourceQuality "1"]
[TimeControl "40/5400+30:1800+30"]

1. d4 {[%emt 0:00:00]} d5 {[%emt 0:00:00]} 2. Bf4 {[%emt 0:00:00]} Nf6 {[%emt 0:00:00]} 3. e3 {[%emt 0:00:00]} g6 {[%emt 0:00:44]} 4. Nf3 {[%emt 0:00:06]} Bg7 {[%emt 0:00:24]} 5. h3 {[%emt 0:00:09]} O-O {[%emt 0:00:38]} 6. Bd3 {[%emt 0:00:17]} c5 {[%emt 0:00:54]} 7. c3 {[%emt 0:00:24]} Nc6 {[%emt 0:00:56] D02: 1 d4 d5 2 Nf3 sidelines, including 2...Nf6 3 g3 and 2...Nf6 3 Bf4} 8. O-O {[%emt 0:00:46]} Nd7 {[%emt 0:01:46]} 9. Nbd2 {[%emt 0:11:10]} e5 {[%emt 0:01:49]} 10. dxe5 {[%emt 0:00:05]} Ndxe5 {[%emt 0:00:32]} 11. Nxe5 {[%emt 0:00:49] LiveBook: 4 Games} (11. Be2 Nxf3+ {½-½ (11) Jojua,D (2575)-Mchedlishvili,M (2601) Tbilisi 2017}) 11... Nxe5 {[%emt 0:00:19]} 12. Bc2 {[%emt 0:02:15]} b6 {[%emt 0:04:12]} 13. Nf3 {[%emt 0:06:22]} Nxf3+ {[%emt 0:03:33]} (13... Nc4 $5 {[%cal Rc4b2]}) 14. Qxf3 {[%emt 0:00:09]} Bb7 {[%emt 0:00:54]} 15. Rfd1 $146 {[%emt 0:02:36]} ({Predecessor:} 15. Rad1 Qc8 {1-0 (38) Frometa Castillo,Z (2132)-Corrales Jimenez,Z (2200) Holguin 2010}) 15... Qe7 {[%emt 0:03:36]} 16. Qg3 {[%emt 0:01:44]} Rad8 {[%emt 0:05:14]} 17. Ba4 {[%emt 0:01:08]} Qe6 {[%emt 0:08:28]} 18. Rd2 {[%emt 0:14:11]} a6 {[%emt 0:04:45]} 19. Bb3 {[%emt 0:03:36]} c4 {[%emt 0:06:27]} 20. Bc2 {[%emt 0:00:27]} b5 {[%emt 0:01:15]} 21. Rad1 {[%emt 0:07:39]} a5 {[%emt 0:03:24]} 22. e4 {[%emt 0:10:26]} b4 {[%emt 0:07:58]} 23. exd5 {[%emt 0:00:17]} Rxd5 {[%emt 0:03:59]} 24. Rxd5 {[%emt 0:04:08]} Bxd5 {[%emt 0:01:02]} 25. Qe3 {[%emt 0:06:02]} (25. Bd6 $11) 25... Qc6 {[%emt 0:03:46]} 26. f3 {[%emt 0:04:13]} Re8 {[%emt 0:05:19]} 27. Qd2 {[%emt 0:00:20]} Qc5+ $15 {[%emt 0:03:26]} 28. Kh1 {[%emt 0:00:22]} Bc6 {[%emt 0:01:29]} 29. cxb4 {[%emt 0:07:02]} axb4 {[%emt 0:01:56]} 30. Bd6 {[%emt 0:00:17]} Qh5 {[%emt 0:03:29]} 31. Bxb4 {[%emt 0:02:55]} Bh6 {[%emt 0:10:40]} 1/2-1/2

[Event "FIDE WCCC G12 2018"]
[Site "Santiago de Compostela"]
[Date "2018.11.15"]
[Round "11"]
[White "Ke, Rianne"]
[Black "Cornileau, Juliette"]
[Result "1-0"]
[ECO "B31"]
[WhiteElo "1600"]
[BlackElo "1740"]
[Annotator "NA"]
[PlyCount "53"]
[EventDate "2018.11.04"]
[EventType "swiss"]
[EventCountry "ESP"]
[SourceTitle "playchess.com"]
[Source "ChessBase"]
[SourceQuality "1"]
[TimeControl "40/5400+30:1800+30"]

1. e4 {[%emt 0:00:00]} c5 {[%emt 0:00:00]} 2. Nf3 {[%emt 0:00:00]} Nc6 {[%emt 0:00:00]} 3. Bb5 {[%emt 0:00:00]} g6 {[%emt 0:00:20]} 4. O-O {[%emt 0:00:00]} Bg7 {[%emt 0:00:04]} 5. c3 {[%emt 0:00:00]} Nf6 {[%emt 0:09:38]} 6. e5 {[%emt 0:00:38]} Nd5 {[%emt 0:01:10]} 7. d4 {[%emt 0:00:45]} cxd4 {[%emt 0:02:13]} 8. cxd4 {[%emt 0:00:26]} O-O {[%emt 0:00:44]} 9. Nc3 {[%emt 0:00:40]} Nc7 {[%emt 0:02:19]} 10. Bf4 {[%emt 0:13:32]} Nxb5 {[%emt 0:06:37]} 11. Nxb5 {[%emt 0:00:07]} a6 {[%emt 0:01:15]} 12. Nc3 {[%emt 0:00:57]} f6 {[%emt 0:07:29]} 13. Qd2 {[%emt 0:06:44]} fxe5 {[%emt 0:06:42]} 14. dxe5 {[%emt 0:01:57]} b5 {[%emt 0:12:47]} 15. Ne4 {[%emt 0:03:10]} Kh8 {[%emt 0:05:36]} 16. Rfd1 {[%emt 0:06:21]} Qe8 {[%emt 0:10:58]} 17. Bh6 {[%emt 0:08:54]} Qf7 {[%emt 0:11:02]} 18. Rac1 {[%emt 0:09:36]} Nd8 {[%emt 0:04:14]} 19. Rc3 {[%emt 0:05:12]} Ne6 {[%emt 0:01:53]} 20. Nfg5 {[%emt 0:08:22]} Nxg5 {[%emt 0:04:27]} 21. Nxg5 {[%emt 0:06:11]} Qg8 {[%emt 0:00:51]} 22. Rh3 {[%emt 0:00:45]} Qc4 {[%emt 0:07:01]} 23. Bxg7+ {[%emt 0:05:11]} Kxg7 {[%emt 0:00:02]} 24. Rxh7+ {[%emt 0:00:19]} Kg8 {[%emt 0:00:02]} 25. Rxe7 {[%emt 0:02:12]} Qxa2 {[%emt 0:03:16]} 26. Qd6 {[%emt 0:00:16]} Kh8 {[%emt 0:01:48]} 27. Rh7+ {[%emt 0:00:08]} 1-0

[Event "FIDE WCCC G12 2018"]
[Site "Santiago de Compostela"]
[Date "2018.11.15"]
[Round "11"]
[White "Zhai, Pinran"]
[Black "Weersing, Abigail Riis"]
[Result "1/2-1/2"]
[ECO "B00"]
[WhiteElo "1558"]
[BlackElo "1649"]
[Annotator "NA"]
[PlyCount "55"]
[EventDate "2018.11.04"]
[EventType "swiss"]
[EventCountry "ESP"]
[SourceTitle "playchess.com"]
[Source "ChessBase"]
[SourceQuality "1"]
[TimeControl "40/5400+30:1800+30"]

1. e4 {[%emt 0:00:00]} d6 {[%emt 0:00:00]} 2. d4 {[%emt 0:00:00]} Nf6 {[%emt 0:00:00]} 3. Bd3 {[%emt 0:00:27]} g6 {[%emt 0:00:00]} 4. c3 {[%emt 0:00:17]} Bg7 {[%emt 0:00:33]} 5. Ne2 {[%emt 0:08:09]} Nbd7 {[%emt 0:01:54]} 6. O-O {[%emt 0:01:26]} O-O {[%emt 0:00:11]} 7. f3 {[%emt 0:00:35]} e5 {[%emt 0:02:41]} 8. Be3 {[%emt 0:05:35]} c6 {[%emt 0:08:02]} 9. Nd2 {[%emt 0:05:16]} d5 {[%emt 0:07:35]} 10. Ng3 {[%emt 0:04:26]} Re8 {[%emt 0:08:06]} 11. f4 {[%emt 0:01:11]} dxe4 {[%emt 0:06:48]} 12. Ndxe4 {[%emt 0:00:34]} Nd5 {[%emt 0:04:20]} 13. Bc1 {[%emt 0:05:52]} exd4 {[%emt 0:05:02]} 14. cxd4 {[%emt 0:00:07]} Bxd4+ {[%emt 0:00:42]} 15. Kh1 {[%emt 0:00:08]} Bg7 {[%emt 0:02:27]} 16. f5 {[%emt 0:05:55]} Rf8 {[%emt 0:05:16]} 17. Rb1 {[%emt 0:08:08]} Ne5 {[%emt 0:02:48]} 18. fxg6 {[%emt 0:01:45]} hxg6 {[%emt 0:02:33]} 19. Be2 {[%emt 0:01:27]} b6 {[%emt 0:09:54]} 20. Qb3 {[%emt 0:06:39]} Be6 {[%emt 0:04:57]} 21. Ng5 {[%emt 0:01:04]} Bg4 {[%emt 0:02:52]} 22. Bxg4 {[%emt 0:03:01]} Nxg4 {[%emt 0:00:38]} 23. Bd2 {[%emt 0:00:50]} Qd7 {[%emt 0:05:51]} 24. Rbd1 {[%emt 0:00:38]} Qb7 {[%emt 0:01:09]} 25. N3e4 {[%emt 0:00:57]} Qc7 {[%emt 0:02:56]} 26. Qh3 {[%emt 0:00:17]} Nh6 {[%emt 0:02:41]} 27. Nf3 {[%emt 0:08:38]} Nf5 {[%emt 0:05:40]} 28. Nfg5 {[%emt 0:00:33]} 1/2-1/2

[Event "FIDE WCCC G12 2018"]
[Site "Santiago de Compostela"]
[Date "2018.11.15"]
[Round "11"]
[White "Schiopu, Oana-Magdalena"]
[Black "Ivanova, Dilyana"]
[Result "1/2-1/2"]
[ECO "B23"]
[WhiteElo "1526"]
[BlackElo "1775"]
[Annotator "NA"]
[PlyCount "42"]
[EventDate "2018.11.04"]
[EventType "swiss"]
[EventCountry "ESP"]
[SourceTitle "playchess.com"]
[Source "ChessBase"]
[SourceQuality "1"]
[TimeControl "40/5400+30:1800+30"]

1. e4 {[%emt 0:00:00]} c5 {[%emt 0:00:00]} 2. Nc3 {[%emt 0:00:00]} Nc6 {[%emt 0:00:00]} 3. f4 {[%emt 0:00:00]} g6 {[%emt 0:00:00]} 4. Nf3 {[%emt 0:00:17]} Bg7 {[%emt 0:00:05]} 5. Bb5 {[%emt 0:00:25]} Nd4 {[%emt 0:00:43]} 6. O-O {[%emt 0:00:48]} a6 {[%emt 0:02:19]} 7. Bc4 {[%emt 0:01:14]} e6 {[%emt 0:02:24]} 8. a4 {[%emt 0:02:23]} Ne7 {[%emt 0:04:16]} 9. Nxd4 {[%emt 0:03:18]} cxd4 {[%emt 0:01:27]} 10. Ne2 {[%emt 0:00:38]} d5 {[%emt 0:02:36]} 11. exd5 {[%emt 0:01:50]} exd5 {[%emt 0:00:43]} 12. Bb3 {[%emt 0:00:59]} Bg4 {[%emt 0:04:43]} 13. Qe1 {[%emt 0:01:25]} O-O {[%emt 0:04:24]} 14. h3 {[%emt 0:03:45]} Bxe2 {[%emt 0:02:40]} 15. Qxe2 {[%emt 0:00:12]} Qd6 {[%emt 0:06:20]} 16. Qf3 {[%emt 0:08:07]} Rad8 {[%emt 0:03:12]} 17. Kh1 {[%emt 0:05:00]} Bf6 {[%emt 0:06:49]} 18. d3 {[%emt 0:07:41]} Rfe8 {[%emt 0:04:53]} 19. g4 {[%emt 0:08:21]} Nc6 {[%emt 0:13:47]} 20. Bd2 {[%emt 0:03:31]} Bh4 {[%emt 0:08:59]} 21. Rad1 {[%emt 0:16:19]} Bg5 1/2-1/2

[Event "FIDE WCCC G12 2018"]
[Site "Santiago de Compostela"]
[Date "2018.11.15"]
[Round "11"]
[White "Mahi Amit Doshi"]
[Black "Mellor, Jessica"]
[Result "1-0"]
[ECO "A84"]
[WhiteElo "1515"]
[BlackElo "1555"]
[Annotator "NA"]
[PlyCount "73"]
[EventDate "2018.11.04"]
[EventType "swiss"]
[EventCountry "ESP"]
[SourceTitle "playchess.com"]
[Source "ChessBase"]
[SourceQuality "1"]
[TimeControl "40/5400+30:1800+30"]

1. d4 {[%emt 0:00:00]} f5 {[%emt 0:00:00]} 2. c4 {[%emt 0:00:38]} Nf6 {[%emt 0:00:00]} 3. Nf3 {[%emt 0:00:33]} e6 {[%emt 0:00:02]} 4. g3 {[%emt 0:00:28]} b6 {[%emt 0:00:27]} 5. Bg2 {[%emt 0:00:23]} Bb7 {[%emt 0:00:29]} 6. O-O {[%emt 0:01:05]} Be7 {[%emt 0:00:26]} 7. Nc3 {[%emt 0:01:10]} O-O {[%emt 0:00:33]} 8. b3 {[%emt 0:01:34]} Qe8 {[%emt 0:04:56]} 9. Bb2 {[%emt 0:04:34]} d6 {[%emt 0:01:40]} 10. d5 {[%emt 0:01:28]} e5 {[%emt 0:00:14]} 11. Ng5 {[%emt 0:00:29]} Bc8 {[%emt 0:00:57]} 12. Nb5 {[%emt 0:01:42]} Bd8 {[%emt 0:01:34]} 13. Ne6 {[%emt 0:02:39]} Bxe6 {[%emt 0:01:58]} 14. dxe6 {[%emt 0:00:30]} e4 {[%emt 0:00:37]} 15. Bxf6 {[%emt 0:05:19]} Rxf6 {[%emt 0:02:31]} 16. e7 {[%emt 0:02:15]} Kh8 {[%emt 0:04:24]} 17. exd8=Q {[%emt 0:01:26]} Qxd8 {[%emt 0:04:37]} 18. f3 {[%emt 0:00:45]} exf3 {[%emt 0:36:31]} 19. Bxf3 {[%emt 0:00:22]} c6 {[%emt 0:00:54]} 20. Nd4 {[%emt 0:00:28]} Qe8 {[%emt 0:03:37]} 21. Qd3 {[%emt 0:00:34]} Qe5 {[%emt 0:04:55]} 22. b4 {[%emt 0:07:18]} d5 {[%emt 0:04:48]} 23. cxd5 {[%emt 0:01:27]} cxd5 {[%emt 0:02:27]} 24. Nb5 {[%emt 0:02:53]} Na6 {[%emt 0:07:36]} 25. a3 {[%emt 0:01:13]} Nc7 {[%emt 0:01:44]} 26. Nxc7 {[%emt 0:00:36]} Qxc7 {[%emt 0:01:34]} 27. Rac1 {[%emt 0:01:52]} Qd7 {[%emt 0:00:56]} 28. Rfd1 {[%emt 0:01:08]} h6 {[%emt 0:02:48]} 29. Qxd5 {[%emt 0:00:14]} Qxd5 {[%emt 0:00:45]} 30. Rxd5 {[%emt 0:00:03]} Re8 {[%emt 0:01:25]} 31. Rc7 {[%emt 0:00:08]} Rfe6 {[%emt 0:02:39]} 32. Rdd7 {[%emt 0:00:08]} Re3 {[%emt 0:02:04]} 33. Rxg7 {[%emt 0:02:10]} Rxa3 {[%emt 0:02:00]} 34. Rh7+ {[%emt 0:00:05]} Kg8 {[%emt 0:00:23]} 35. Bd5+ {[%emt 0:00:02]} Re6 {[%emt 0:04:24]} 36. Bxe6+ {[%emt 0:01:47]} Kf8 {[%emt 0:00:30]} 37. Rh8# {[%emt 0:00:03]} 1-0